fUSD/lending_fUSD_20241024
["ID","MTS","AMOUNT","RATE_DAILY","PERIOD"]
[340734324,1729749055219,-502.4153931,0.00057534,120]
[340734325,1729749055228,-504.2448507,0.00057534,120]
[340734326,1729749055237,-504.3282923,0.00057534,120]
[340734327,1729749055247,-500.0,0.00057572,120]
[340734328,1729749055256,-500.0,0.00057572,120]
[340734329,1729749055267,-500.0,0.00057572,120]
[340734330,1729749055276,-500.0,0.00057572,120]
[340734331,1729749055285,-1786.86,0.00057572,120]
[340734332,1729749055295,-613.66,0.00057572,120]
[340734333,1729749055304,-300.77151253,0.00057573,15]
[340734334,1729749055313,-501.43791508,0.00057573,5]
[340734335,1729749055322,-334.67252626,0.00057573,2]
[340734336,1729749055332,-172.77066497,0.00057633,69]
[340734337,1729749055341,-2266.0,0.00057671,120]
[340734338,1729749055351,-168.66,0.00057791,2]
[340734339,1729749055360,-2266.0,0.00057808,120]
[340734340,1729749055369,-3954.039999,0.0005783,120]
[340734341,1729749055378,-150.0,0.00057837,120]
[340734342,1729749055387,-2266.0,0.00057945,120]
[340734343,1729749055396,-5000.0,0.00058,120]
[340734344,1729749055405,-2266.0,0.00058082,120]
[340734345,1729749055414,-2266.0,0.00058219,120]
[340734346,1729749055424,-500.0,0.0005826,120]
[340734347,1729749055433,-500.0,0.0005826,120]
[340734348,1729749055442,-500.0,0.0005826,120]
[340734349,1729749055451,-500.0,0.0005826,120]
[340734350,1729749055460,-500.0,0.0005826,120]
[340734351,1729749055472,-500.0,0.0005826,120]
[340734352,1729749055482,-500.0,0.0005826,120]
[340734353,1729749055491,-624.11,0.0005826,120]
[340734354,1729749055500,-500.0,0.0005826,120]
[340734355,1729749055510,-719.38,0.0005826,120]
[340734356,1729749055519,-500.0,0.0005826,120]
[340734357,1729749055528,-500.0,0.0005826,120]
[340734358,1729749055537,-500.0,0.0005826,120]
[340734359,1729749055547,-1021.59,0.0005826,120]
[340734360,1729749055556,-916.98,0.00058268,120]
[340734361,1729749055565,-1749.13,0.00058268,120]
[340734362,1729749055574,-500.0,0.00058268,120]
[340734363,1729749055584,-762.0,0.00058268,120]
[340734364,1729749055593,-500.0,0.00058268,120]
[340734365,1729749055602,-4223.57,0.00058268,120]
[340734366,1729749055611,-500.0,0.00058268,120]
[340734367,1729749055620,-1658.3,0.00058268,120]
[340734368,1729749055629,-188.02413,0.000583,120]
[340734369,1729749055638,-2266.0,0.00058356,120]
[340734370,1729749055647,-424.7,0.00058356,60]
[340734371,1729749055656,-756.83,0.00058356,60]
[340734372,1729749055664,-756.83,0.00058356,60]
[340734373,1729749055673,-424.7,0.00058356,60]
[340734374,1729749055682,-424.81,0.00058356,60]
[340734375,1729749055691,-1204.45,0.00058356,60]
[340734376,1729749055700,-424.7,0.00058356,60]
[340734377,1729749055709,-756.83,0.00058356,60]
[340734378,1729749055720,-775.53,0.00058356,60]
[340734379,1729749055729,-434.02,0.00058356,60]
[340734380,1729749055739,-424.81,0.00058356,60]
[340734381,1729749055747,-1508.03,0.00058356,60]
[340734382,1729749055756,-756.83,0.00058356,60]
[340734383,1729749055765,-500.0,0.00058368,120]
[340734384,1729749055774,-1796.36,0.00058368,120]
[340734385,1729749055783,-500.0,0.00058368,120]
[340734386,1729749055792,-500.0,0.00058368,120]
[340734387,1729749055801,-539.08,0.00058368,120]
[340734388,1729749055810,-500.0,0.00058368,120]
[340734389,1729749055819,-508.48275172,0.00058369,120]
[340734390,1729749055828,-502.00591203,0.00058369,120]
[340734391,1729749055837,-502.29869671,0.00058369,120]
[340734392,1729749055847,-502.68688899,0.00058369,120]
[340734393,1729749055857,-502.0499542,0.00058369,120]
[340734394,1729749055866,-510.01013647,0.00058369,120]
[340734395,1729749055875,-502.41173364,0.00058369,120]
[340734396,1729749055884,-503.72863326,0.00058369,120]
[340734397,1729749055894,-509.77837662,0.00058369,30]
[340734398,1729749055903,-504.66141216,0.00058369,120]
[340734399,1729749055913,-508.31523706,0.00058369,120]
[340734400,1729749055923,-610.51608761,0.00058369,120]
[340734401,1729749055932,-503.7906561,0.00058369,120]
[340734402,1729749055941,-499.97468524,0.00058369,120]
[340734403,1729749055950,-503.06646742,0.00058369,120]
[340734404,1729749055959,-502.48947522,0.00058369,120]
[340734405,1729749055971,-500.0,0.00058369,120]
[340734406,1729749055980,-1003.67812534,0.00058369,120]
[340734407,1729749055989,-504.19632499,0.00058369,120]
[340734408,1729749055998,-503.05963733,0.00058369,120]
[340734409,1729749056007,-504.41269207,0.00058369,120]
[340734410,1729749056016,-508.62514647,0.00058369,120]
[340734411,1729749056025,-504.23690688,0.00058369,120]
[340734412,1729749056034,-501.94723504,0.00058369,120]
[340734413,1729749056043,-503.30879013,0.00058369,120]
[340734414,1729749056052,-502.3225525,0.00058369,120]
[340734415,1729749056062,-522.19115,0.00058369,120]
[340734416,1729749056073,-506.9024406,0.00058369,120]
[340734417,1729749056083,-510.99862075,0.00058369,120]
[340734418,1729749056093,-506.54537971,0.00058369,120]
[340734419,1729749056102,-503.84630813,0.00058369,120]
[340734420,1729749056111,-502.47274275,0.00058369,120]
[340734421,1729749056120,-504.46896516,0.00058369,120]
[340734422,1729749056129,-502.51166852,0.00058369,120]
[340734423,1729749056137,-502.49958928,0.00058369,120]
[340734424,1729749056146,-502.55944085,0.00058369,120]
[340734425,1729749056157,-500.85935361,0.00058369,120]
[340734426,1729749056169,-501.14960229,0.00058369,120]
[340734427,1729749056178,-501.46770317,0.00058369,120]
[340734428,1729749056187,-501.62299493,0.00058369,120]
[340734429,1729749056196,-500.0,0.00058369,120]
[340734430,1729749056206,-502.16981099,0.00058369,120]
[340734431,1729749056215,-502.24007082,0.00058369,120]
[340734432,1729749056226,-506.00618344,0.00058369,120]
[340734433,1729749056235,-505.47690945,0.00058369,120]
[340734434,1729749056245,-502.29485487,0.00058369,120]
[340734435,1729749056254,-502.05601016,0.00058369,120]
[340734436,1729749056263,-501.61845612,0.00058369,120]
[340734437,1729749056272,-501.8075518,0.00058369,120]
[340734438,1729749056281,-504.05854464,0.00058369,120]
[340734439,1729749056291,-500.91,0.00058369,120]
[340734440,1729749056300,-596.35712817,0.00058369,120]
[340734441,1729749056309,-502.15619701,0.00058369,120]
[340734442,1729749056318,-506.84761556,0.00058369,120]
[340734443,1729749056327,-516.08604542,0.00058369,120]
[340734444,1729749056337,-502.40492578,0.00058369,120]
[340734445,1729749056346,-503.60353971,0.00058369,120]
[340734446,1729749056355,-501.92817626,0.00058369,120]
[340734447,1729749056364,-502.62820688,0.00058369,120]
[340734448,1729749056373,-511.24537219,0.00058369,120]
[340734449,1729749056383,-504.21112612,0.00058369,120]
[340734450,1729749056392,-501.42216958,0.00058369,120]
[340734451,1729749056401,-504.95198496,0.00058369,120]
[340734452,1729749056410,-505.10907441,0.00058369,120]
[340734453,1729749056419,-509.65171053,0.00058369,120]
[340734454,1729749056429,-514.67557398,0.00058369,120]
[340734455,1729749056438,-1002.56212539,0.00058369,120]
[340734456,1729749056447,-510.12100148,0.00058369,120]
[340734457,1729749056544,-520.68674039,0.00058369,120]
[340734458,1729749056554,-519.47004281,0.00058369,120]
[340734459,1729749056563,-509.3927058,0.00058369,120]
[340734460,1729749056572,-512.17952273,0.00058369,120]
[340734461,1729749056581,-503.31835096,0.00058369,120]
[340734462,1729749056590,-500.0,0.00058369,120]
[340734463,1729749056599,-221.71381228,0.00058369,120]
[340734464,1729749056608,-281.34439035,0.00058369,120]
[340734465,1729749056617,-502.35317338,0.00058369,120]
[340734466,1729749056626,-500.0,0.00058369,120]
[340734467,1729749056635,-502.91669435,0.00058369,120]
[340734468,1729749056644,-505.88884527,0.00058369,120]
[340734469,1729749056653,-507.51442987,0.00058369,120]
[340734470,1729749056662,-500.0,0.00058369,120]
[340734471,1729749056671,-212.21894522,0.00058369,120]
[340734472,1729749056680,-507.49601801,0.00058369,120]
[340734473,1729749056690,-504.50133701,0.00058369,120]
[340734474,1729749056701,-505.12742939,0.00058369,120]
[340734475,1729749056711,-506.20893644,0.00058369,120]
[340734476,1729749056722,-505.40675132,0.00058369,120]
[340734477,1729749056731,-832.96,0.00058369,120]
[340734478,1729749056740,-832.96,0.00058369,120]
[340734479,1729749056750,-500.0,0.00058369,120]
[340734480,1729749056761,-289.01507376,0.00058369,120]
[340734481,1729749056770,-518.94921138,0.00058369,120]
[340734482,1729749056779,-505.08400665,0.00058369,120]
[340734483,1729749056788,-505.14484989,0.00058369,120]
[340734484,1729749056797,-500.0,0.00058369,120]
[340734485,1729749056806,-500.0,0.00058369,120]
[340734486,1729749056815,-508.26393222,0.00058369,120]
[340734487,1729749056824,-500.0,0.00058369,120]
[340734488,1729749056833,-505.30948752,0.00058369,120]
[340734489,1729749056842,-500.0,0.00058369,120]
[340734490,1729749056853,-504.11096366,0.00058369,120]
[340734491,1729749056862,-502.42056112,0.00058369,120]
[340734492,1729749056871,-511.94915211,0.00058369,120]
[340734493,1729749056880,-500.0,0.00058369,120]
[340734494,1729749056889,-500.0,0.00058369,120]
[340734495,1729749056899,-502.46645286,0.00058369,120]
[340734496,1729749056908,-510.80419321,0.00058369,120]
[340734497,1729749056917,-523.7974646,0.00058369,120]
[340734498,1729749056926,-523.43992765,0.00058369,120]
[340734499,1729749056937,-504.32545994,0.00058369,120]
[340734500,1729749056946,-502.44335932,0.00058369,120]
[340734501,1729749056954,-503.06699989,0.00058369,120]
[340734502,1729749056963,-500.0,0.00058369,120]
[340734503,1729749056974,-500.0,0.00058369,120]
[340734504,1729749056982,-500.0,0.00058369,120]
[340734505,1729749056992,-505.75668024,0.00058369,120]
[340734506,1729749057001,-502.57946082,0.00058369,120]
[340734507,1729749057011,-342.95454682,0.00058369,120]
[340734508,1729749057020,-521.98506545,0.00058369,120]
[340734509,1729749057031,-503.36700335,0.00058369,120]
[340734510,1729749057041,-500.0,0.00058369,120]
[340734511,1729749057051,-501.69079973,0.00058369,120]
[340734512,1729749057060,-502.46461169,0.00058369,120]
[340734513,1729749057072,-502.24584906,0.00058369,120]
[340734514,1729749057083,-502.5058485,0.00058369,120]
[340734515,1729749057094,-509.53780687,0.00058369,120]
[340734516,1729749057103,-511.89649689,0.00058369,120]
[340734517,1729749057114,-506.74464071,0.00058369,120]
[340734518,1729749057124,-501.88156527,0.00058369,120]
[340734519,1729749057134,-508.13359167,0.00058369,120]
[340734520,1729749057144,-545.45044991,0.00058369,120]
[340734521,1729749057155,-506.09531292,0.00058369,120]
[340734522,1729749057165,-503.83915502,0.00058369,120]
[340734523,1729749057175,-303.54606983,0.00058369,120]
[340734524,1729749057184,-496.79660862,0.00058369,120]
[340734525,1729749057194,-503.58563812,0.00058369,120]
[340734526,1729749057203,-504.28668752,0.00058369,120]
[340734527,1729749057212,-502.54936772,0.00058369,120]
[340734528,1729749057224,-501.111977,0.00058369,120]
[340734529,1729749057233,-506.2421374,0.00058369,120]
[340734530,1729749057242,-502.78977697,0.00058369,120]
[340734531,1729749057251,-602.51207544,0.00058369,120]
[340734532,1729749057260,-500.0,0.00058369,120]
[340734533,1729749057269,-500.0,0.00058369,120]
[340734534,1729749057278,-502.42832993,0.00058369,120]
[340734535,1729749057288,-501.98377618,0.00058369,120]
[340734536,1729749057298,-503.75504299,0.00058369,120]
[340734537,1729749057307,-305.71906898,0.00058369,120]
[340734538,1729749057318,-505.96312569,0.00058369,120]
[340734539,1729749057329,-500.0,0.00058369,120]
[340734540,1729749057342,-508.50103822,0.00058369,120]
[340734541,1729749057351,-501.68391641,0.00058369,120]
[340734542,1729749057360,-505.10116566,0.00058369,120]
[340734543,1729749057369,-484.11466999,0.00058369,16]
[340734544,1729749057378,-502.74441494,0.00058369,120]
[340734545,1729749057386,-500.0,0.00058369,120]
[340734546,1729749057395,-500.0,0.00058369,120]
[340734547,1729749057404,-500.0,0.00058369,120]
[340734548,1729749057413,-500.0,0.00058369,120]
[340734549,1729749057422,-502.99887978,0.00058369,120]
[340734550,1729749057431,-503.13882653,0.00058369,120]
[340734551,1729749057441,-440.93929923,0.00058369,120]
[340734552,1729749057450,-500.0,0.00058369,120]
[340734553,1729749057459,-498.33506286,0.00058369,120]
[340734554,1729749057473,-501.51290583,0.00058369,120]
[340734555,1729749057482,-511.07365373,0.00058369,120]
[340734556,1729749057491,-500.8329527,0.00058369,120]
[340734557,1729749057501,-505.05891608,0.00058369,120]
[340734558,1729749057510,-217.07343099,0.00058369,120]
[340734559,1729749057519,-503.73790563,0.00058369,120]
[340734560,1729749057529,-504.35996788,0.00058369,120]
[340734561,1729749057538,-500.0,0.00058369,120]
[340734562,1729749057546,-500.0,0.00058369,120]
[340734563,1729749057555,-505.29704826,0.00058369,120]
[340734564,1729749057564,-502.29015943,0.00058369,120]
[340734565,1729749057573,-501.68163833,0.00058369,120]
[340734566,1729749057582,-677.9,0.00058369,120]
[340734567,1729749057591,-677.9,0.00058369,120]
[340734568,1729749057600,-504.70391118,0.00058369,120]
[340734569,1729749057609,-500.0,0.00058369,120]
[340734570,1729749057617,-500.0,0.00058369,120]
[340734571,1729749057626,-586.11537402,0.00058369,120]
[340734572,1729749057635,-541.6,0.00058369,120]
[340734573,1729749057644,-541.6,0.00058369,120]
[340734574,1729749057653,-502.27407127,0.00058369,120]
[340734575,1729749057662,-500.0,0.00058369,120]
[340734576,1729749057671,-500.0,0.00058369,120]
[340734577,1729749057680,-151.0,0.00058369,120]
[340734578,1729749057689,-500.0,0.00058369,120]
[340734579,1729749057698,-290.721597,0.00058369,120]
[340734580,1729749057707,-459.99402994,0.00058369,120]
[340734581,1729749057718,-517.93068255,0.00058369,120]
[340734582,1729749057727,-715.04,0.00058369,120]
[340734583,1729749057735,-715.04,0.00058369,120]
[340734584,1729749057744,-500.0,0.00058369,120]
[340734585,1729749057753,-500.0,0.00058369,120]
[340734586,1729749057764,-1747.87,0.00058369,120]
[340734587,1729749057774,-1747.87,0.00058369,120]
[340734588,1729749057784,-916.98,0.00058369,120]
[340734589,1729749057794,-500.0,0.00058369,120]
[340734590,1729749057804,-500.0,0.00058369,120]
[340734591,1729749057813,-624.11,0.00058369,120]
[340734592,1729749057825,-624.11,0.00058369,120]
[340734593,1729749057835,-569.87193311,0.00058369,120]
[340734594,1729749057846,-500.0,0.00058369,120]
[340734595,1729749057856,-500.0,0.00058369,120]
[340734596,1729749057865,-719.38,0.00058369,120]
[340734597,1729749057874,-719.38,0.00058369,120]
[340734598,1729749057883,-571.97,0.00058369,120]
[340734599,1729749057894,-571.97,0.00058369,120]
[340734600,1729749057904,-1043.89,0.00058369,120]
[340734601,1729749057913,-1043.89,0.00058369,120]
[340734602,1729749057923,-1749.13,0.00058369,120]
[340734603,1729749057933,-500.0,0.00058369,120]
[340734604,1729749057942,-500.0,0.00058369,120]
[340734605,1729749057951,-500.0,0.00058369,120]
[340734606,1729749057961,-762.0,0.00058369,120]
[340734607,1729749057971,-500.0,0.00058369,120]
[340734608,1729749057979,-500.0,0.00058369,120]
[340734609,1729749057988,-292.16211,0.00058369,120]
[340734610,1729749057997,-151.0,0.00058369,120]
[340734611,1729749058007,-292.16211,0.00058369,120]
[340734612,1729749058016,-500.0,0.00058369,120]
[340734613,1729749058025,-211.98979603,0.00058369,120]
[340734614,1729749058034,-243.0833238,0.00058369,120]
[340734615,1729749058042,-4223.57,0.00058369,120]
[340734616,1729749058051,-500.0,0.00058369,120]
[340734617,1729749058060,-500.0,0.00058369,120]
[340734618,1729749058069,-500.0,0.00058369,120]
[340734619,1729749058078,-500.0,0.00058369,120]
[340734620,1729749058087,-244.85832259,0.00058369,120]
[340734621,1729749058097,-1658.3,0.00058369,120]
[340734622,1729749058106,-1021.59,0.00058369,120]
[340734623,1729749058115,-1021.59,0.00058369,120]
[340734624,1729749058124,-255.25271467,0.00058378,2]
[340734625,1729749058133,-1435.08929203,0.000584,30]
[340734626,1729749058142,-914.68,0.00058464,2]
[340734627,1729749058151,-500.0,0.00058468,120]
[340734628,1729749058161,-500.0,0.00058468,120]
[340734629,1729749058170,-1747.87,0.00058468,120]
[340734630,1729749058178,-500.0,0.00058476,120]
[340734631,1729749058187,-500.0,0.00058476,120]
[340734632,1729749058196,-500.0,0.00058476,120]
[340734633,1729749058205,-500.0,0.00058476,120]
[340734634,1729749058214,-1786.86,0.00058476,120]
[340734635,1729749058224,-613.66,0.00058476,120]
[340734636,1729749058233,-1796.36,0.00058477,120]
[340734637,1729749058243,-292.16211,0.00058477,120]
[340734638,1729749058252,-227.622949,0.00058477,120]
[340734639,1729749058261,-292.16211,0.00058477,120]
[340734640,1729749058270,-500.0,0.00058478,120]
[340734641,1729749058279,-500.0,0.00058478,120]
[340734642,1729749058288,-500.0,0.00058478,120]
[340734643,1729749058298,-500.0,0.00058478,120]
[340734644,1729749058307,-677.9,0.00058478,120]
[340734645,1729749058316,-500.0,0.00058478,120]
[340734646,1729749058326,-541.6,0.00058478,120]
[340734647,1729749058335,-500.0,0.00058478,120]
[340734648,1729749058345,-715.04,0.00058478,120]
[340734649,1729749058354,-500.0,0.00058478,120]
[340734650,1729749058363,-624.11,0.00058478,120]
[340734651,1729749058372,-500.0,0.00058478,120]
[340734652,1729749058382,-719.38,0.00058478,120]
[340734653,1729749058391,-571.97,0.00058478,120]
[340734654,1729749058400,-1043.89,0.00058478,120]
[340734655,1729749058409,-500.0,0.00058478,120]
[340734656,1729749058418,-500.0,0.00058478,120]
[340734657,1729749058427,-500.0,0.00058478,120]
[340734658,1729749058437,-1021.59,0.00058478,120]
[340734659,1729749058447,-2266.0,0.00058493,120]
[340734660,1729749058456,-173.102414,0.00058498,120]
[340734661,1729749058467,-500.0,0.00058499,120]
[340734662,1729749058477,-9003.729887,0.000585,2]
[340734663,1729749058487,-9108.29163949,0.00058574,2]
[340734664,1729749058496,-264.92954533,0.00058574,2]
[340734665,1729749058506,-4117.25202771,0.00058578,2]
[340734666,1729749058516,-181.06567917,0.00058579,12]
[340734667,1729749058526,-832.96,0.00058599,120]
[340734668,1729749058535,-500.0,0.00058599,120]
[340734669,1729749058546,-500.0,0.00058599,120]
[340734670,1729749058555,-155.98,0.00058599,120]
[340734671,1729749058565,-3944.0,0.000586,120]
[340734672,1729749058574,-3508.654046,0.000586,114]
[340734673,1729749058583,-500.0,0.0005863,120]
[340734674,1729749058592,-500.0,0.0005863,120]
[340734675,1729749058601,-500.0,0.0005863,120]
[340734676,1729749058611,-500.0,0.0005863,120]
[340734677,1729749058620,-500.0,0.0005863,120]
[340734678,1729749058629,-500.0,0.0005863,120]
[340734679,1729749058638,-2266.0,0.0005863,120]
[340734680,1729749058647,-500.0,0.0005864,120]
[340734681,1729749058657,-2279.5823412,0.00058674,2]
[340734682,1729749058666,-75679.7220341,0.00058674,2]
[340734683,1729749058754,-5530.8178231,0.00058674,2]
[340734684,1729749058774,-292.16211,0.00058674,120]
[340734685,1729749058783,-292.16211,0.00058674,120]
[340734686,1729749058794,-1657.2134221,0.00058674,2]
[340734687,1729749058803,-9297.2574403,0.00058674,2]
[340734688,1729749058812,-500.0,0.00058677,120]
[340734689,1729749058822,-500.0,0.00058677,120]
[340734690,1729749058831,-1747.87,0.00058677,120]
[340734691,1729749058842,-214.17197391,0.00058678,120]
[340734692,1729749058853,-6782.69551001,0.00058678,120]
[340734693,1729749058863,-2000.0,0.00058678,15]
[340734694,1729749058872,-200.0,0.00058678,15]
[340734695,1729749058881,-2000.0,0.00058678,15]
[340734696,1729749058891,-200.0,0.00058678,15]
[340734697,1729749058900,-20885.99843453,0.00058678,30]
[340734698,1729749058909,-2000.0,0.00058679,120]
[340734699,1729749058919,-500.0,0.00058694,120]
[340734700,1729749058928,-539.08,0.00058694,120]
[340734701,1729749058938,-500.0,0.00058694,120]
[340734702,1729749058949,-500.0,0.00058695,120]
[340734703,1729749058960,-916.98,0.00058695,120]
[340734704,1729749058971,-1749.13,0.00058695,120]
[340734705,1729749058980,-607.02334705,0.00058695,120]
[340734706,1729749058990,-762.0,0.00058695,120]
[340734707,1729749058999,-4223.57,0.00058695,120]
[340734708,1729749059008,-500.0,0.00058695,120]
[340734709,1729749059018,-1658.3,0.00058695,120]
[340734710,1729749059027,-1796.36,0.00058714,120]
[340734711,1729749059037,-168.72365901,0.00058736,120]
[340734712,1729749059047,-677.9,0.00058736,120]
[340734713,1729749059056,-541.6,0.00058736,120]
[340734714,1729749059066,-715.04,0.00058736,120]
[340734715,1729749059075,-500.0,0.00058736,120]
[340734716,1729749059084,-571.97,0.00058736,120]
[340734717,1729749059094,-1043.89,0.00058736,120]
[340734718,1729749059103,-500.0,0.00058736,120]
[340734719,1729749059112,-500.0,0.00058736,120]
[340734720,1729749059122,-2266.0,0.00058767,120]
[340734721,1729749059131,-500.0,0.00058779,120]
[340734722,1729749059141,-475.0,0.00058779,120]
[340734723,1729749059151,-832.96,0.00058869,120]
[340734724,1729749059160,-500.0,0.00058869,120]
[340734725,1729749059170,-500.0,0.00058869,120]
[340734726,1729749059180,-526.67,0.0005887,120]
[340734727,1729749059189,-500.0,0.00058874,120]
[340734728,1729749059199,-496.03629173,0.00058874,120]
[340734729,1729749059209,-500.0,0.00058874,120]
[340734730,1729749059220,-500.0,0.00058874,120]
[340734731,1729749059230,-500.0,0.00058874,120]
[340734732,1729749059239,-500.0,0.00058874,120]
[340734733,1729749059248,-500.0,0.00058874,120]
[340734734,1729749059258,-1747.87,0.00058874,120]
[340734735,1729749059267,-500.0,0.00058874,120]
[340734736,1729749059277,-624.11,0.00058874,120]
[340734737,1729749059286,-719.38,0.00058874,120]
[340734738,1729749059295,-500.0,0.00058874,120]
[340734739,1729749059304,-1021.59,0.00058874,120]
[340734740,1729749059314,-500.0,0.00058877,120]
[340734741,1729749059323,-320.528418,0.00058877,120]
[340734742,1729749059333,-500.0,0.00058877,120]
[340734743,1729749059342,-500.0,0.00058877,120]
[340734744,1729749059352,-1786.86,0.00058877,120]
[340734745,1729749059362,-613.66,0.00058877,120]
[340734746,1729749059371,-832.96,0.00058878,120]
[340734747,1729749059381,-500.0,0.00058878,120]
[340734748,1729749059391,-500.0,0.00058878,120]
[340734749,1729749059400,-677.9,0.00058878,120]
[340734750,1729749059410,-541.6,0.00058878,120]
[340734751,1729749059420,-500.0,0.00058878,120]
[340734752,1729749059429,-715.04,0.00058878,120]
[340734753,1729749059438,-500.0,0.00058878,120]
[340734754,1729749059448,-571.97,0.00058878,120]
[340734755,1729749059459,-1043.89,0.00058878,120]
[340734756,1729749059470,-1796.36,0.00058878,120]
[340734757,1729749059480,-500.0,0.00058878,120]
[340734758,1729749059489,-500.0,0.00058878,120]
[340734759,1729749059498,-330.41920401,0.00058878,120]
[340734760,1729749059508,-832.96,0.00058879,120]
[340734761,1729749059517,-832.96,0.00058879,120]
[340734762,1729749059526,-500.0,0.00058879,120]
[340734763,1729749059535,-500.0,0.00058879,120]
[340734764,1729749059544,-593.69592953,0.00058879,120]
[340734765,1729749059553,-523.43859196,0.00058879,120]
[340734766,1729749059562,-503.33712785,0.00058879,120]
[340734767,1729749059571,-500.0,0.00058879,120]
[340734768,1729749059580,-500.0,0.00058879,120]
[340734769,1729749059589,-677.9,0.00058879,120]
[340734770,1729749059599,-677.9,0.00058879,120]
[340734771,1729749059608,-500.0,0.00058879,120]
[340734772,1729749059618,-500.0,0.00058879,120]
[340734773,1729749059627,-541.6,0.00058879,120]
[340734774,1729749059637,-541.6,0.00058879,120]
[340734775,1729749059645,-336.40646338,0.00058879,120]
[340734776,1729749059655,-715.04,0.00058879,120]
[340734777,1729749059664,-715.04,0.00058879,120]
[340734778,1729749059673,-500.0,0.00058879,120]
[340734779,1729749059683,-500.0,0.00058879,120]
[340734780,1729749059692,-1747.87,0.00058879,120]
[340734781,1729749059701,-1747.87,0.00058879,120]
[340734782,1729749059711,-500.0,0.00058879,120]
[340734783,1729749059725,-500.0,0.00058879,120]
[340734784,1729749059734,-624.11,0.00058879,120]
[340734785,1729749059743,-624.11,0.00058879,120]
[340734786,1729749059752,-500.0,0.00058879,120]
[340734787,1729749059761,-500.0,0.00058879,120]
[340734788,1729749059771,-719.38,0.00058879,120]
[340734789,1729749059781,-719.38,0.00058879,120]
[340734790,1729749059790,-571.97,0.00058879,120]
[340734791,1729749059798,-571.97,0.00058879,120]
[340734792,1729749059808,-1043.89,0.00058879,120]
[340734793,1729749059818,-1043.89,0.00058879,120]
[340734794,1729749059827,-1796.36,0.00058879,120]
[340734795,1729749059838,-1796.36,0.00058879,120]
[340734796,1729749059850,-500.0,0.00058879,120]
[340734797,1729749059860,-500.0,0.00058879,120]
[340734798,1729749059869,-292.16211,0.00058879,120]
[340734799,1729749059879,-292.162113,0.00058879,120]
[340734800,1729749059888,-500.0,0.00058879,120]
[340734801,1729749059898,-500.0,0.00058879,120]
[340734802,1729749059908,-1021.59,0.00058879,120]
[340734803,1729749059917,-1021.59,0.00058879,120]
[340734804,1729749059928,-805.59098971,0.00058904,120]
[340734805,1729749059938,-430.25,0.00058904,60]
[340734806,1729749059947,-3388.93282411,0.00058944,15]
[340734807,1729749059956,-916.98,0.00058998,120]
[340734808,1729749059967,-1749.13,0.00058998,120]
[340734809,1729749059977,-762.0,0.00058998,120]
[340734810,1729749059986,-4223.57,0.00058998,120]
[340734811,1729749059995,-500.0,0.00058998,120]
[340734812,1729749060005,-1658.3,0.00058998,120]
[340734813,1729749060016,-500.0,0.00058999,120]
[340734814,1729749060025,-500.0,0.00058999,120]
[340734815,1729749060034,-500.0,0.00058999,120]
[340734816,1729749060044,-500.0,0.00058999,120]
[340734817,1729749060054,-1747.87,0.00058999,120]
[340734818,1729749060064,-500.0,0.00058999,120]
[340734819,1729749060074,-624.11,0.00058999,120]
[340734820,1729749060083,-719.38,0.00058999,120]
[340734821,1729749060092,-500.0,0.00058999,120]
[340734822,1729749060102,-1021.59,0.00058999,120]
[340734823,1729749060112,-4357.05036,0.00059,120]